Cogmind - Beta 16 @@@ ROGUE MODE // 2025.11.05 @ 07:47:23 Player: shapeshifter Result: Destroyed by G-67 Veteran with Plasma Rifle Performance ------------- Evolutions (7) 3500 Regions Visited (30) 6000 Robots Destroyed (239) 1195 Value Destroyed (9443) 9443 Prototype IDs (254) 5080 Alien Tech Used (4) 800 Bonus (14914) 14914 TOTAL SCORE: 40932 Bonus ------- High Alert Combat Kills 218 Follower Combat Kills 1856 Network Hubs Disabled 800 Aligned with FarCom 300 Met Data Miner 300 Used Data Conduit 3000 Met Zhirov 300 Met Warlord at Base 500 MAIN.C Attacked Warlord 500 Warlord Defense Kills 120 Built Enhanced Grunts 300 A7 Reached Mainframe 300 Met R17 at Cetus 500 Found Hidden Lab 3000 Decrypted A0 Command 3000 Friendly Fire -80 Cogmind --------- Core Integrity 0/1300 Matter 3/300 Energy 100/100 System Corruption 14% Temperature Cool (21) Movement Core (50) Location -3/Lab Parts ------- > --- POWER (2) -------- (None) > --- PROPULSION (6) --- (None) > --- UTILITY (9) ------ (None) > --- WEAPON (4) ------- (None) > --- INVENTORY (5) ---- Cooled Antimatter Reactor Cooled Antigrav System Cooled Antigrav System Enhanced Force Lance Peak State ------------ > --- POWER ------------ Light Antimatter Reactor Quantum Reactor > --- PROPULSION ------- Improved Heavy Treads Armored Heavy Treads Advanced Heavy Treads > --- UTILITY ---------- Advanced Heat Sink Huge Storage Unit Enhanced Optical Array Experimental Armor Integrity Analyzer Makeshift Transmission Jammer Advanced Hacking Suite System Mapper Deep Network Scanner Quantum Router > --- WEAPON ----------- Neutron Cannon KE Penetrator Advanced KE Penetrator Hardcell Cannon > --- INVENTORY -------- Antimatter Reactor Light Antimatter Reactor Vortex Chain Reactor Cooled Antigrav System Cooled Antigrav System Advanced Heat Sink Advanced Heat Sink Large Storage Unit Superbattery Experimental Matter Compressor Particle Accelerator Layered Medium Armor Plating Improved Focal Shield Advanced Shield Generator Improved Force Field System Purifier Dimensional Node Initializer Transdimensional Reconstructor Transdimensional Reconstructor Vortex Cannon Improved Plasma Cutter Zhirov Special [Rating: 170] Favorites ----------- Power Antimatter Reactor Engine Deuterium Engine Power Core Fusion Compressor Reactor Antimatter Reactor Propulsion Light Treads Treads Light Treads Leg Enhanced Flexi-carbon Leg Wheel Wheel Hover Unit Cooled Antigrav System Utility Centrium Medium Armor Plating Device Advanced Heat Sink Storage Huge Storage Unit Processor Enhanced Optical Array Hackware Improved Hacking Suite Protection Centrium Medium Armor Plating Weapon Advanced KE Penetrator Energy Gun Advanced Beam Rifle Energy Cannon Neutron Cannon Ballistic Gun Advanced KE Penetrator Ballistic Cannon Hardcell Cannon Launcher Rocket Launcher Special Weapon Advanced Remote Datajack Impact Weapon Great Maul Slashing Weapon Greatsword Piercing Weapon Enhanced Force Lance Special Melee Weapon Datajack Build | -11 -10 -10 -9 -9 -9 -8 -8 -7 -7 -7 -7 -6 -6 -6 -6 -6 -6 -5 -5 -5 -5 -4 -4 -4 -4 -4 -3 -3 -3 -3 ------- Run | Yrd Mat Min Mat Min Exi Min Mat Fac Low Low Dat Pro Fac Ext Cet Arc Hub Fac Upp Upp War Pro Fac Upp Upp Zhi Pro Res Arm Lab Slots Evolved 14 | . . . 2 . . . 2 2 . . . . 2 . . . . 2 . . . . 2 . . . . 2 . . Power 1 | . . . . . . . . . . . . . . . . . . 1 . . . . . . . . . . . . Propulsion 4 | . . . . . . . 2 1 . . . . . . . . . 1 . . . . . . . . . . . . Utility 7 | . . . 2 . . . . 1 . . . . 2 . . . . . . . . . . . . . . 2 . . Weapon 2 | . . . . . . . . . . . . . . . . . . . . . . . 2 . . . . . . . Parts Attached 201 | 7 3 2 12 2 3 1 20 12 . 2 17 . 5 11 12 8 7 2 2 . 8 2 3 1 2 15 4 10 16 12 Power 21 | 1 . . 4 . . . 1 . . . 1 . . 2 1 . . 1 . . 2 . . . 1 . . 3 . 4 Engine 8 | 1 . . 4 . . . 1 . . . 1 . . 1 . . . . . . . . . . . . . . . . Core 1 | . . . . . . . . . . . . . . 1 . . . . . . . . . . . . . . . . Reactor 12 | . . . . . . . . . . . . . . . 1 . . 1 . . 2 . . . 1 . . 3 . 4 Propulsion 48 | 2 . 1 1 1 . 1 10 3 . . 3 . 2 2 5 . 2 . 2 . . . . . 1 2 2 . 7 1 Treads 23 | 2 . 1 1 1 . 1 3 . . . . . . . 3 . 2 . 2 . . . . . 1 . 2 . 4 . Leg 15 | . . . . . . . . 2 . . 3 . 2 2 2 . . . . . . . . . . 2 . . 1 1 Wheel 8 | . . . . . . . 7 1 . . . . . . . . . . . . . . . . . . . . . . Hover 2 | . . . . . . . . . . . . . . . . . . . . . . . . . . . . . 2 . Flight . | . . . . . . . . . . . . . . . . . . . . . . . . . . . . . . . Utility 79 | 2 1 . 7 1 1 . 5 5 . . 10 . 3 5 4 7 4 1 . . 1 2 1 1 . 6 1 7 1 3 Device 31 | 1 . . 5 1 1 . 1 1 . . 4 . 2 1 1 3 . . . . 1 . . 1 . 4 1 2 1 . Storage 8 | 1 1 . 1 . . . . 1 . . 1 . . 1 . . . . . . . . . . . . . . . 2 Processor 10 | . . . . . . . 2 2 . . 1 . 1 1 . . . . . . . 2 1 . . . . . . . Hackware 14 | . . . . . . . 1 1 . . . . . 2 . 2 2 1 . . . . . . . . . 5 . . Protection 16 | . . . 1 . . . 1 . . . 4 . . . 3 2 2 . . . . . . . . 2 . . . 1 Artifact . | . . . . . . . . . . . . . . . . . . . . . . . . . . . . . . . Weapon 53 | 2 2 1 . . 2 . 4 4 . 2 3 . . 2 2 1 1 . . . 5 . 2 . . 7 1 . 8 4 Energy Gun 6 | . . . . . . . 2 . . 1 . . . . . . 1 . . . 1 . . . . . . . . 1 Energy Cannon 8 | . . . . . . . . . . . 2 . . 2 . . . . . . 1 . . . . 2 . . . 1 Ballistic Gun 22 | 2 2 1 . . 1 . 1 2 . 1 . . . . 2 . . . . . 2 . 1 . . . . . 7 . Ballistic Cannon 1 | . . . . . . . . . . . . . . . . . . . . . . . . . . . 1 . . . Launcher 1 | . . . . . . . 1 . . . . . . . . . . . . . . . . . . . . . . . Special Weapon 7 | . . . . . . . . . . . . . . . . . . . . . 1 . . . . 5 . . . 1 Impact Weapon 1 | . . . . . . . . 1 . . . . . . . . . . . . . . . . . . . . . . Slashing Weapon 1 | . . . . . . . . 1 . . . . . . . . . . . . . . . . . . . . . . Piercing Weapon 2 | . . . . . . . . . . . 1 . . . . . . . . . . . . . . . . . 1 . Special Melee Weapon 4 | . . . . . 1 . . . . . . . . . . 1 . . . . . . 1 . . . . . . 1 Unidentified Prototypes 17 | . 1 . 2 . . . 1 . . . . . . . . . . . . . 2 . . . . 2 . 3 1 5 Corrupted Parts 11 | . . . . . . . . . . . . . . . 5 . 1 . . . 5 . . . . . . . . . System Corruption 66 | . . . . . . . . . . . . . . . 36 . 7 . . . 23 . . . . . . . . . Parts Lost 83 | . . 1 2 2 . 3 6 11 . 2 4 . 1 4 4 . 1 1 1 1 . . . 1 2 6 . 10 19 1 Power 7 | . . . 1 . . . . 1 . . . . . 1 . . . . . . . . . . . . . 2 2 . Propulsion 25 | . . 1 . . . 1 3 5 . . . . . . 1 . 1 1 . 1 . . . . 1 3 . 2 5 . Utility 29 | . . . 1 2 . 1 1 2 . 2 3 . 1 2 2 . . . 1 . . . . . . 3 . 4 3 1 Weapon 22 | . . . . . . 1 2 3 . . 1 . . 1 1 . . . . . . . . 1 1 . . 2 9 . Highest Loss Streak 10 | . . 1 1 2 . 2 6 9 . 2 4 . 1 2 2 . 1 1 2 1 . . . 1 1 6 . 10 8 1 To Critical Strikes . | . . . . . . . . . . . . . . . . . . . . . . . . . . . . . . . Average Backups 19 | 2 11 14 16 17 18 18 17 18 16 18 14 16 16 22 23 23 23 22 22 24 23 24 23 22 22 22 23 21 19 13 Power 1 | . 1 1 . 1 1 1 . 1 1 1 . 1 1 3 3 3 3 3 2 2 2 2 2 2 1 1 2 2 2 2 Propulsion 2 | 1 2 2 4 4 4 5 2 2 1 1 1 2 2 4 4 1 1 2 1 . . 2 2 3 2 2 2 2 2 2 Utility 10 | . 3 5 5 7 7 8 10 13 12 14 11 12 10 12 12 11 13 13 14 16 14 10 9 8 8 11 13 11 9 4 Weapon 3 | . 4 4 4 4 4 2 3 2 2 1 . 1 1 2 3 5 4 3 3 3 4 8 8 8 8 4 1 1 1 1 Tool/Special . | . . . . . . . . . . . . . . . . . . . . . . . . . . . . . . . Unused Backups 75 | 1 5 . 8 . 1 1 4 7 . 2 . . 1 2 11 8 . . 3 . 8 . 1 . . 2 4 . . 6 Power 9 | . . . 3 . . . . 1 . . . . . . 2 1 . . 1 . . . . . . . . . . 1 Propulsion 8 | 1 1 . 1 . . . . . . . . . 1 2 2 . . . . . . . . . . . . . . . Utility 41 | . 1 . 1 . 1 1 4 4 . 2 . . . . 5 4 . . 1 . 8 . 1 . . 2 4 . . 2 Weapon 13 | . 3 . 3 . . . . 2 . . . . . . 2 2 . . 1 . . . . . . . . . . . Tool/Special 4 | . . . . . . . . . . . . . . . . 1 . . . . . . . . . . . . . 3 Average Slot Usage (%) 85 | . 100 99 91 99 88 89 94 90 60 63 61 91 81 99 84 82 84 81 81 84 88 88 80 85 79 72 83 81 48 39 Engine 4 | . 14 14 10 11 11 11 9 6 . . 1 7 6 6 . . . . . . . . . . . . . . . . Reactor 4 | . . . . . . . . . . . . . . . 5 6 6 11 11 11 11 11 10 10 10 10 10 8 3 3 Treads 14 | . 28 27 22 22 22 21 11 . . . . . . . 3 13 16 16 17 19 23 23 21 21 20 12 10 13 6 . Leg 5 | . . . . . . . . 1 15 13 20 30 23 33 22 6 1 . . . . . . . . 3 8 . . 5 Wheel 1 | . . . . . . . 19 30 . . . . . . . . . . . . . . . . . . . . . . Device 12 | . 14 14 18 32 33 23 8 2 6 6 8 15 17 13 16 9 6 5 5 5 5 5 . 2 5 7 10 8 2 7 Storage 7 | . 14 14 11 11 11 11 9 7 7 7 7 7 6 6 6 6 6 5 5 5 5 5 5 5 5 5 5 4 5 3 Processor 7 | . . . . . . . 8 15 15 13 2 . 5 12 13 13 13 11 5 5 5 8 15 15 15 15 15 9 9 6 Hackware 4 | . . . . . . . 8 9 7 7 6 . . 5 . 5 9 15 12 11 6 . . . . . . 16 8 2 Protection 5 | . . . 7 . . . . . . . 6 14 7 6 4 6 9 1 8 11 15 19 13 12 10 5 5 . . . Energy Gun 1 | . . . . . . . 13 13 . 5 . . . . . . . 5 5 5 . . . . . . . . . . Energy Cannon 1 | . . . . . . . . . . . 1 15 13 13 6 . . . . . . . . . . 1 5 3 2 . Ballistic Gun 10 | . 28 28 22 22 1 22 3 . 7 6 . . . . 4 12 12 5 5 5 10 11 11 15 11 8 10 8 4 . Peak Build Rating 170 | 7 13 14 26 24 26 26 34 46 51 57 76 76 87 92 123 125 122 123 135 135 154 153 157 157 155 163 146 170 119 132 Average Rating 78 | 4 9 12 17 23 19 24 31 38 50 51 49 75 73 89 90 116 118 120 125 124 141 151 149 155 145 124 138 161 88 66 On Entrance 81 | . 7 11 14 22 24 26 23 34 43 51 31 76 63 87 88 122 120 116 116 135 134 152 148 156 155 141 123 146 110 58 Avg Prop Armor Cover (%) 4 | . . . . . . . 12 . . . . . . . 2 3 3 . . . 4 . . . . 5 4 . . . Naked Turns 37 | . . . . . . . . . . . . . . . . . . . . . . . . . . . . . . 37 Heaviest Build 168 | 14 31 32 61 63 63 63 61 56 45 49 86 86 89 118 124 124 123 131 138 138 158 158 155 155 149 168 156 161 138 93 Greatest Support 214 | 40 40 40 40 40 40 40 80 60 60 60 144 114 124 124 160 160 188 188 214 214 214 214 214 214 214 209 205 205 116 48 Greatest Overweight (x) 6 | . . . 1 1 1 1 3 5 . 1 . . . . 1 . . . . 1 . . . . 1 1 1 1 5 6 Average Overweight (x) . | . . . . 1 1 1 . . . . . . . . . . . . . . . . . . . . . . 1 1 Largest Inventory Capacity 25 | 8 15 15 20 20 20 20 20 20 20 20 20 20 20 25 25 25 25 25 25 25 25 25 25 25 25 25 25 25 25 25 Average Capacity 21 | 7 14 15 16 20 20 20 20 20 20 20 20 20 20 24 25 25 25 25 25 25 25 25 25 25 25 25 25 25 25 15 Most Carried 25 | 5 15 15 20 20 20 19 20 20 18 20 20 17 19 25 25 25 25 24 25 25 25 25 25 25 25 25 25 25 25 23 Average Carried 20 | 3 11 14 16 17 18 18 17 19 17 19 14 16 16 22 23 24 24 23 23 24 24 25 24 24 24 23 24 23 20 14 Final Capacity 25 | 8 15 15 20 20 20 20 20 20 20 20 20 20 20 25 25 25 25 25 25 25 25 25 25 25 25 25 25 25 25 15 Final Carried 25 | 4 15 14 20 17 19 17 20 18 17 19 16 18 16 24 24 25 23 24 25 24 25 25 24 25 23 25 25 18 23 15 Class Distribution -------------------- 46% | Scavenger-Mutant 39% | Mutant 5% | Scavenger-Tank 4% | Hacker-Mutant Dominant Class ---------------- Mutant | -10/Materials Mutant | -10/Mines Mutant | -9/Materials Mutant | -9/Mines Mutant | -9/Exiles Mutant | -8/Mines Scavenger-Mutant | -8/Materials Scavenger-Mutant | -7/Factory Mutant | -7/Lower Caves Mutant | -7/Lower Caves Mutant | -7/Data Miner Scavenger-Mutant | -6/Proximity Caves Scavenger-Mutant | -6/Factory Scavenger-Mutant | -6/Extension Scavenger-Mutant | -6/Cetus Scavenger-Mutant | -6/Archives Scavenger-Mutant | -6/Hub_04(d) Scavenger-Mutant | -5/Factory Scavenger-Mutant | -5/Upper Caves Scavenger-Mutant | -5/Upper Caves Scavenger-Mutant | -5/Warlord Scavenger-Mutant | -4/Proximity Caves Scavenger-Mutant | -4/Factory Scavenger-Tank | -4/Upper Caves Scavenger-Mutant | -4/Upper Caves Scavenger-Mutant | -4/Zhirov Scavenger-Tank | -3/Proximity Caves Wizard-Tank | -3/Research Hacker-Mutant | -3/Armory Hacker-Mutant | -3/Lab Resources | -11 -10 -10 -9 -9 -9 -8 -8 -7 -7 -7 -7 -6 -6 -6 -6 -6 -6 -5 -5 -5 -5 -4 -4 -4 -4 -4 -3 -3 -3 -3 ----------- Run | Yrd Mat Min Mat Min Exi Min Mat Fac Low Low Dat Pro Fac Ext Cet Arc Hub Fac Upp Upp War Pro Fac Upp Upp Zhi Pro Res Arm Lab Matter Collected 6649 | 314 190 160 681 161 . 333 444 136 34 63 246 . 40 150 154 367 347 . 126 43 555 413 160 102 344 156 178 106 438 208 Remotely . | . . . . . . . . . . . . . . . . . . . . . . . . . . . . . . . Salvage Created 9876 | 143 296 157 1180 209 . 172 929 353 . 193 418 . 539 1206 350 383 496 . 94 183 77 293 235 234 537 291 31 184 693 . Parts 493 | 9 17 9 80 10 . 19 51 17 . 10 7 . 18 50 14 32 19 . 1 11 1 15 19 8 28 5 1 11 31 . Haulers Intercepted 6 | . . . 2 . . . 3 . . . . . 1 . . . . . . . . . . . . . . . . . Recyclers Shooed 8 | . . . 4 . . . 1 . . . . . . 3 . . . . . . . . . . . . . . . . Parts Field Recycled . | . . . . . . . . . . . . . . . . . . . . . . . . . . . . . . . Retrieved Matter . | . . . . . . . . . . . . . . . . . . . . . . . . . . . . . . . Parts Self-Destructed 82 | . . . . . . . . . 8 10 . 2 . . . . . . . 9 . 15 . 8 27 3 . . . . Prevented 1 | . . . . . . . . . . . . . . . . . . . . . . 1 . . . . . . . . Parts Restored . | . . . . . . . . . . . . . . . . . . . . . . . . . . . . . . . Kills | -11 -10 -10 -9 -9 -9 -8 -8 -7 -7 -7 -7 -6 -6 -6 -6 -6 -6 -5 -5 -5 -5 -4 -4 -4 -4 -4 -3 -3 -3 -3 ------- Run | Yrd Mat Min Mat Min Exi Min Mat Fac Low Low Dat Pro Fac Ext Cet Arc Hub Fac Upp Upp War Pro Fac Upp Upp Zhi Pro Res Arm Lab Combat Hostiles Destroyed 172 | . 6 5 22 6 . 10 16 6 . 6 4 . 4 16 5 1 9 . . 7 1 5 2 3 14 9 . 4 11 . Melee 4 | . . . . . . . . . . . 4 . . . . . . . . . . . . . . . . . . . Guns 119 | . 6 5 22 6 . 10 9 6 . 6 . . . . . 1 8 . . 7 1 5 2 3 14 . . 1 7 . Cannons 33 | . . . . . . . . . . . . . 4 15 2 . . . . . . . . . . 6 . 2 4 . AOE 12 | . . . . . . . 7 . . . . . . 1 . . . . . . . . . . . 3 . 1 . . Classes Destroyed 20 | 2 4 2 5 . . 1 . . . . . . . . . . 1 . . . . 1 . . . . . 1 3 . Worker 9 | . . . 3 . . . 5 . . . . . . 1 . . . . . . . . . . . . . . . . Builder 6 | . . 1 . . . . 1 1 . . . . . . . . . . . . . . 2 . . . . 1 . . Tunneler 3 | 3 . . . . . . . . . . . . . . . . . . . . . . . . . . . . . . Hauler 6 | . . . 2 . . . 3 . . . . . 1 . . . . . . . . . . . . . . . . . Recycler 11 | 1 1 . 2 . . . 1 . . . . . 2 4 . . . . . . . . . . . . . . . . Mechanic 1 | . . . 1 . . . . . . . . . . . . . . . . . . . . . . . . . . . Operator 15 | . 1 . 1 . . . 2 . . . . . . 1 . 9 . . . . . . 1 . . . . . . . Watcher 14 | . 3 . 5 . . . 2 . . . . . 1 2 . . . . . . . . . . . . . . 1 . Swarmer 62 | . 3 2 11 2 . 9 3 . . 5 . . . 7 . . 1 . . 7 . 2 . . 10 . . . . . Grunt 43 | . 3 . 6 3 . . 10 4 . . . . 2 3 2 . 5 . . . . . . . 2 . . 1 2 . Brawler 4 | . . . 1 1 . . . 1 . . . . . . . . . . . . 1 . . . . . . . . . Duelist 2 | . . . . . . . . . . . . . . . . . 1 . . . . . . . 1 . . . . . Sentry 21 | . . . 4 . . . 3 1 . 1 . . . 4 . 1 1 . . . . . 2 1 1 . . . 2 . Demolisher 1 | . . . . . . . . . . . . . . . . . . . . . . . . . . . . . 1 . Specialist 1 | . . . . . . . . . . . . . . . . . . . . . . . . . . . . . 1 . Hunter 13 | . . . . . . 1 . . . . . . 2 2 . . . . . . . 2 . 2 . . . 2 2 . Programmer 3 | . . . . . . . . . . . . . . . . . . . . . . . . . . . . . 3 . Heavy 1 | . . . . . . . . . . . . . . . . . . . . . . . . . . . . 1 . . Behemoth 1 | . . . . . . . . . . . . . . . . . . . . . . 1 . . . . . . . . Cetus Guard 3 | . . . . . . . . . . . . . . . 3 . . . . . . . . . . . . . . . Enhanced Grunt 13 | . . . . . . . . . . . 4 . . . . . . . . . . . . . . 9 . . . . Lightning 1 | . . . . . . . . . . . . . . . . . 1 . . . . . . . . . . . . . Decomposer 2 | . . . . . . . . . . . . . . . . . . . . . . . . . . . 2 . . . Packrat 1 | . . . . . . . . . . . . . . . . . . . 1 . . . . . . . . . . . Assembled 2 | . . 2 . . . . . . . . . . . . . . . . . . . . . . . . . . . . Best Kill Streak 12 | 4 4 4 7 2 . 4 7 4 . 3 2 . 4 5 2 4 5 . . 4 1 2 2 3 5 12 . 2 6 . Combat Bots Only 9 | . 3 4 7 2 . 4 6 4 . 3 2 . 2 5 2 1 5 . . 4 1 2 1 3 5 9 . 2 6 . Max Kills in Single Turn 5 | 1 1 1 2 1 . 2 5 1 . 1 1 . 1 2 1 1 2 . 1 2 1 1 1 1 2 2 1 1 2 . Gunslinging 1 | . . . . . . 1 . . . . . . . . . . . . . 1 . . . . 1 . . . 1 . Exploded 3 | . . . . . . . 3 . . . . . . 1 . . . . . . . . . . . 2 . 1 . . Melee 1 | . . . . . . . . . . . 1 . . . . . . . . . . . . . . . . . . . Uniques/NPCs Destroyed 6 | . . 1 . . . . . . . . 1 . . . . . . . . . . . . . . 3 . . . 1 YI-UF0 (-10/Mines) Data Miner (-7/Data Miner) Zhirov (-4/Zhirov) Svarog (-4/Zhirov) Perun (-4/Zhirov) A5 (-3/Lab) Combat | -11 -10 -10 -9 -9 -9 -8 -8 -7 -7 -7 -7 -6 -6 -6 -6 -6 -6 -5 -5 -5 -5 -4 -4 -4 -4 -4 -3 -3 -3 -3 -------- Run | Yrd Mat Min Mat Min Exi Min Mat Fac Low Low Dat Pro Fac Ext Cet Arc Hub Fac Upp Upp War Pro Fac Upp Upp Zhi Pro Res Arm Lab Hostile Shots Fired 1644 | . 29 26 79 40 . 60 72 124 . 21 36 . 26 208 46 9 89 70 4 30 . 93 16 34 99 103 . 84 232 14 Missed 499 | . 8 8 17 12 . 16 27 42 . 5 6 . 7 81 21 3 21 20 . 7 . 12 5 12 42 31 . 23 68 5 Hits 1145 | . 21 18 62 28 . 44 45 82 . 16 30 . 19 127 25 6 68 50 4 23 . 81 11 22 57 72 . 61 164 9 Melee 16 | . . 1 . 3 . . . . . 7 . . . . . . . . 4 . . . . . 1 . . . . . Projectile 1129 | . 21 17 62 25 . 44 45 82 . 9 30 . 19 127 25 6 68 50 . 23 . 81 11 22 56 72 . 61 164 9 AOE 13 | . . 7 . . . . . . . . . . 1 . . . . . . . . . . . . . . . 5 . Critical Strikes 37 | . . . 2 1 . 1 2 2 . . . . 2 2 3 1 7 1 . . . 1 1 1 1 . . 1 8 . Part Disruptions 5 | . . . . . . . . . . . 2 . . . . . . . . . 1 . . . . 2 . . . . Damage Taken 22387 | . 229 303 481 268 . 396 792 1193 . 147 1409 . 440 1436 588 140 2118 965 10 353 60 1427 250 417 1015 2200 . 1748 3278 724 Core 3490 | . 7 . 77 38 . 17 95 318 . 27 233 . 73 255 158 . 163 140 . 36 . 76 . 23 78 133 . 231 771 541 Absorbed by Shields 1272 | . . . 179 100 . 48 . . . . . . . 331 120 . . . . . . . . . . . . 297 197 . Reduced by Siege Mode 441 | . . . . . . . . . . . . . . . . . 199 . . . . 78 . . . 164 . . . . Ignored by Resistances 92 | . . . . . . . . . . . . . . . . . . . . . 4 88 . . . . . . . . Regen/Repaired (Parts) 442 | . . . . . . . . . . . . . . . . . . . . . 442 . . . . . . . . . Core Remaining (%) 67 | 100 . 97 . . . 67 82 . . . . 17 . . . . 23 . . . . 74 . . . . 79 . . . Volleys Fired 697 | 11 26 12 69 14 . 31 70 31 . 9 . . 16 67 30 34 33 6 2 12 2 32 15 6 33 30 3 31 67 5 Largest 4 | 2 2 2 2 2 . 2 2 2 . 2 . . 2 2 2 2 2 2 2 2 2 2 2 3 3 4 3 4 4 1 Hottest 240 | 40 43 43 46 46 . 46 122 122 . 108 . . 180 180 144 70 240 240 240 115 240 70 70 103 103 68 158 213 140 100 Shots Fired 1287 | 22 51 25 137 29 . 59 112 61 . 15 . . 32 133 38 62 60 8 3 24 4 59 30 18 76 50 9 62 103 5 Gun 955 | 22 51 25 137 29 . 59 102 61 . 15 . . . . . 62 60 8 3 24 4 59 30 18 76 8 6 20 76 . Cannon 293 | . . . . . . . . . . . . . 32 133 38 . . . . . . . . . . 17 3 42 27 1 Launcher 10 | . . . . . . . 10 . . . . . . . . . . . . . . . . . . . . . . . Special 29 | . . . . . . . . . . . . . . . . . . . . . . . . . . 25 . . . 4 Kinetic 833 | 22 51 25 137 29 . 59 48 5 . 9 . . . . . 62 59 3 1 12 2 59 30 18 76 8 6 36 76 . Thermal 356 | . . . . . . . 54 56 . 6 . . 32 132 6 . 1 5 2 12 2 . . . . . 3 26 18 1 Explosive 35 | . . . . . . . 10 . . . . . . . . . . . . . . . . . . 25 . . . . Electromagnetic 33 | . . . . . . . . . . . . . . 1 32 . . . . . . . . . . . . . . . Entropic 26 | . . . . . . . . . . . . . . . . . . . . . . . . . . 17 . . 9 . Robot Hit Streak 21 | 4 12 6 12 10 . 5 19 8 . 8 . . 10 12 10 10 18 4 1 5 5 16 17 10 8 21 14 5 10 2 Robot Miss Streak 7 | 2 2 2 3 3 . 7 4 5 . 2 . . 1 4 4 3 2 1 . 3 . 3 3 1 4 1 1 3 5 4 Penetration Max 1 | . . . . . . . . 1 . 1 . . . . . 1 1 . . . 1 . . 1 1 . . . 1 . Secondary Targets 27 | . . 1 1 . . 2 3 3 . . . . . . . . 3 . . 2 . 2 . 2 4 . . . 4 . Max Gunslinging Chain 2 | . . 1 1 . . 1 1 1 . . . . . . . . 1 . . 1 . 1 . 1 2 . . . 2 . Shots Hit Robots 816 | 14 39 15 96 18 4 27 71 34 . 11 25 . 20 81 23 37 42 3 1 13 2 33 18 14 45 42 4 19 63 2 Core Hits 445 | 7 17 9 47 7 . 12 52 19 . 11 17 . 10 43 10 21 17 1 1 7 1 15 8 7 22 46 2 10 26 . Critical Kills 22 | 1 1 1 . . . . . . . . . . . . . 3 3 . 1 1 . 1 3 3 2 . . 1 1 . Critical Parts Destroyed 25 | . . . 1 1 . 1 . . . . . . . . . 4 3 1 . 1 . 5 4 . 2 1 . . 1 . Critical Strikes 75 | 1 1 1 1 1 . 1 3 3 . . 5 . . . . 7 6 1 1 2 . 7 8 3 4 13 . 1 5 . Burn 6 | . . . . . . . 3 3 . . . . . . . . . . . . . . . . . . . . . . Destroy 49 | 1 1 1 1 1 . 1 . . . . . . . . . 7 6 1 1 2 . 7 8 3 4 1 . 1 2 . Sever 11 | . . . . . . . . . . . 5 . . . . . . . . . . . . . . 6 . . . . Sunder 9 | . . . . . . . . . . . . . . . . . . . . . . . . . . 6 . . 3 . Melee Attacks 58 | . . . . . 4 . . 2 . . 43 . . . . 2 . . . . . . 1 . . . . . 1 5 Impact 1 | . . . . . . . . 1 . . . . . . . . . . . . . . . . . . . . . . Slashing 27 | . . . . . . . . 1 . . 26 . . . . . . . . . . . . . . . . . . . Piercing 23 | . . . . . . . . . . . 17 . . . . . . . . . . . . . . . . . 1 5 Sneak Attacks 8 | . . . . . 4 . . . . . 1 . . . . 2 . . . . . . 1 . . . . . . . Combat Hostiles . | . . . . . . . . . . . . . . . . . . . . . . . . . . . . . . . Follow-up Attacks . | . . . . . . . . . . . . . . . . . . . . . . . . . . . . . . . Damage Inflicted 27714 | 147 546 204 1467 272 . 419 2156 736 . 245 1022 . 810 4230 785 1172 1400 98 27 396 92 869 537 359 1270 5093 113 766 2336 147 Guns 13295 | 147 546 204 1467 272 . 409 1214 736 . 245 . . . . . 1172 1363 98 27 396 92 869 537 359 1270 225 113 192 1342 . Cannons 8099 | . . . . . . . . . . . . . 810 3785 785 . . . . . . . . . . 1151 . 574 994 . Explosions 4037 | . . . . . . . 942 . . . . . . 437 . . 20 . . . . . . . . 2638 . . . . Melee 1022 | . . . . . . . . . . . 1022 . . . . . . . . . . . . . . . . . . . Ramming 182 | . . . . . . 10 . . . . . . . 8 . . 17 . . . . . . . . . . . . 147 Kinetic 11941 | 147 546 204 1467 272 . 409 614 96 . 157 . . . . . 1172 1363 54 27 170 92 869 537 359 1270 225 113 436 1342 . Thermal 7304 | . . . . . . . 600 640 . 88 . . 810 4192 . . . 44 . 226 . . . . . . . 330 374 . Explosive 3580 | . . . . . . . 942 . . . . . . . . . . . . . . . . . . 2638 . . . . Electromagnetic 835 | . . . . . . . . . . . . . . 30 785 . 20 . . . . . . . . . . . . . Impact . | . . . . . . . . . . . . . . . . . . . . . . . . . . . . . . . Slashing 1702 | . . . . . . . . . . . 623 . . . . . . . . . . . . . . 1079 . . . . Piercing 399 | . . . . . . . . . . . 399 . . . . . . . . . . . . . . . . . . . Entropic 1771 | . . . . . . . . . . . . . . . . . . . . . . . . . . 1151 . . 620 . Highest Corruption 41 | . 2 2 5 10 10 10 4 2 2 2 2 2 . . 36 36 41 . . . 9 . . . . 3 3 . 3 14 Average Corruption 9 | . 2 2 5 9 10 10 4 2 2 2 2 2 . . 28 31 29 . . . 5 . . . . 3 3 . 2 7 Corruption Purged 13 | . . . . . . . . . . . . . . . . 13 . . . . . . . . . . . . . . Corruption Blocked . | . . . . . . . . . . . . . . . . . . . . . . . . . . . . . . . Effects 280 | . 4 14 30 29 26 37 2 3 4 5 2 1 . . 14 42 28 . . . 3 . . . . 7 9 . 4 16 Message Errors 69 | . . 5 7 10 8 9 2 . 1 1 1 . . . 5 8 6 . . . . . . . . . 1 . 2 3 Matter Fused 55 | . 2 . 5 2 7 9 . 1 1 2 . . . . 2 10 4 . . . 2 . . . . 3 2 . . 3 Heat Flow Errors 31 | . . . 5 6 1 4 . . . 1 . . . . 2 5 4 . . . . . . . . . 2 . 1 . Energy Discharges 35 | . . 5 3 4 4 2 . . 2 . 1 . . . . 3 4 . . . . . . . . 2 1 . . 4 Parts Rejected 2 | . . . 1 . . . . . . . . . . . . 1 . . . . . . . . . . . . . . Parts Fused 10 | . . . 2 1 . 4 . 1 . . . . . . 1 1 . . . . . . . . . . . . . . Data Loss (minor) 35 | . . 2 2 2 5 5 . . . . . . . . 1 7 3 . . . 1 . . . . 1 2 . . 4 Data Loss (major) 16 | . 1 1 3 2 1 2 . . . . . . . . 2 1 1 . . . . . . . . . 1 . . 1 Misfires 4 | . . 1 1 1 . . . . . 1 . . . . . . . . . . . . . . . . . . . . Alerts 7 | . . . 1 1 . . . 1 . . . 1 . . 1 . . . . . . . . . . . . . 1 1 Misdirections 1 | . . . . . . . . . . . . . . . . . 1 . . . . . . . . . . . . . Weapon Failures 15 | . 1 . . . . 2 . . . . . . . . . 6 5 . . . . . . . . 1 . . . . Overload Shots 6 | . . . . . . . . . . . . . . . . . 1 3 1 . 1 . . . . . . . . . Overflow Damage 460 | . . . . . . . 3 . . . 11 . 27 97 19 . . . . . . . . . . 277 . . 26 . Projectiles 353 | . . . . . . . . . . . . . 27 97 19 . . . . . . . . . . 184 . . 26 . Explosions 96 | . . . . . . . 3 . . . . . . . . . . . . . . . . . . 93 . . . . Melee 11 | . . . . . . . . . . . 11 . . . . . . . . . . . . . . . . . . . Knockbacks 2 | . . . . . . . . . . . . . . . . . . . . . . . . . . . . 2 . . Impact . | . . . . . . . . . . . . . . . . . . . . . . . . . . . . . . . Kinetic 2 | . . . . . . . . . . . . . . . . . . . . . . . . . . . . 2 . . Secondary . | . . . . . . . . . . . . . . . . . . . . . . . . . . . . . . . Self-Inflicted Damage 367 | . . . . . . . 66 . . . . . . . . . 94 . . . . . . . . . . . 62 145 Shots 4 | . . . . . . . 2 . . . . . . . . . 1 . . . . . . . . . . . 1 . Rammed 3 | . . . . . . 1 . . . . . . . . . . 1 . . . . . . . . . . . . 1 Targets Rammed 4 | . . . . . . 1 . . . . . . . 1 . . 1 . . . . . . . . . . . . 1 Kicked 1 | . . . . . . . . . . . . . . 1 . . . . . . . . . . . . . . . . Crushed . | . . . . . . . . . . . . . . . . . . . . . . . . . . . . . . . Highest Temperature 477 | . 3 . 279 234 85 247 42 224 . 222 . . 198 378 174 240 292 477 166 18 185 270 93 193 237 . 250 36 71 . Average Temperature 73 | . 3 . 102 107 49 109 8 83 . 43 . . 69 66 54 92 114 237 65 6 63 84 35 100 95 . 138 17 28 . Received Heat Transfer 3392 | . 105 . 129 80 . . 396 567 . . . . 72 213 75 27 345 441 . . 9 72 36 9 162 9 . 75 549 21 Effects 5 | . . . . . . . . . . . . . . . . . . 2 . . . 3 . . . . . . . . Shutdowns 2 | . . . . . . . . . . . . . . . . . . 2 . . . . . . . . . . . . Interference 3 | . . . . . . . . . . . . . . . . . . . . . . 3 . . . . . . . . Siege Activations 6 | . . . . . . . . . . . . . . . . . 1 . . . . 2 . . . 3 . . . . Total Turns 191 | . . . . . . . . . . . . . . . . . 81 . . . . 53 . . . 57 . . . . Longest Duration 81 | . . . . . . . . . . . . . . . . . 81 . . . . 30 . . . 41 . . . . Martial Activations . | . . . . . . . . . . . . . . . . . . . . . . . . . . . . . . . Shielding Activations . | . . . . . . . . . . . . . . . . . . . . . . . . . . . . . . . Robots Disrupted . | . . . . . . . . . . . . . . . . . . . . . . . . . . . . . . . Combat Hostiles . | . . . . . . . . . . . . . . . . . . . . . . . . . . . . . . . Robots Corrupted 3 | . . . . . . . . . . . . . . . 3 . . . . . . . . . . . . . . . Combat Hostiles 3 | . . . . . . . . . . . . . . . 3 . . . . . . . . . . . . . . . Parts Fried 3 | . . . . . . . . . . . . . . 1 2 . . . . . . . . . . . . . . . Impact Corruptions . | . . . . . . . . . . . . . . . . . . . . . . . . . . . . . . . Robots Melted . | . . . . . . . . . . . . . . . . . . . . . . . . . . . . . . . Combat Hostiles . | . . . . . . . . . . . . . . . . . . . . . . . . . . . . . . . Parts Melted 2 | . . . . . . 1 1 . . . . . . . . . . . . . . . . . . . . . . . Heat Transferred 3634 | . . . . . . . 1332 1406 . 200 . . . 400 . . . 37 . 259 . . . . . . . . . . Parts Sabotaged . | . . . . . . . . . . . . . . . . . . . . . . . . . . . . . . . Parts Stolen 9 | . . . . . . . . . . 6 . . . . . . . . 3 . . . . . . . . . . . Parts Stripped . | . . . . . . . . . . . . . . . . . . . . . . . . . . . . . . . Power Chain Reactions 4 | . . . . . . . . . . . . . . 4 . . . . . . . . . . . . . . . . Alert | -11 -10 -10 -9 -9 -9 -8 -8 -7 -7 -7 -7 -6 -6 -6 -6 -6 -6 -5 -5 -5 -5 -4 -4 -4 -4 -4 -3 -3 -3 -3 ------- Run | Yrd Mat Min Mat Min Exi Min Mat Fac Low Low Dat Pro Fac Ext Cet Arc Hub Fac Upp Upp War Pro Fac Upp Upp Zhi Pro Res Arm Lab Maximum Alert Level 3 | . . . 1 . . . 1 . . . . . . 2 1 . 3 2 . . . . 3 . . . . . . . Low Security (%) 82 | 100 100 100 70 100 . 100 89 100 . . . . 100 75 38 100 30 69 . . . . . . . . . 100 100 . Level 1 12 | . . . 29 . . . 10 . . . . . . 22 61 . 5 10 . . . . . . . . . . . . Level 2 1 | . . . . . . . . . . . . . . 2 . . 24 20 . . . . . . . . . . . . Level 3 3 | . . . . . . . . . . . . . . . . . 40 . . . . . 100 . . . . . . . Level 4 . | . . . . . . . . . . . . . . . . . . . . . . . . . . . . . . . Level 5 . | . . . . . . . . . . . . . . . . . . . . . . . . . . . . . . . High Security . | . . . . . . . . . . . . . . . . . . . . . . . . . . . . . . . Max Security . | . . . . . . . . . . . . . . . . . . . . . . . . . . . . . . . Peak Influence 918 | 15 65 30 282 94 . 105 267 80 . . . . 154 520 288 165 868 418 . . . . 918 . . . . 69 169 . Initial 900 | . . 18 . 45 . . . 32 . . . . . 70 288 38 . 416 . . . . 900 . . . . . 11 . Average 121 | 2 13 2 165 21 . 22 129 26 . . . . 47 130 207 61 505 167 . . . . 862 . . . . 15 55 . Influence Increases 7976 | 20 218 55 675 211 . 305 648 247 . 130 20 . 244 1089 348 234 1109 20 . 205 20 120 1038 70 310 5 . 195 440 . Destroy 0b10 Robot/C 3688 | . 120 40 440 160 . 240 320 120 . 120 20 . 64 560 176 64 304 . . 140 20 100 40 60 280 . . 80 220 . Destroy 0b10 Robot/NC 337 | 20 25 5 70 . . . 70 5 . . . . 16 36 8 36 16 . . . . . 15 . . 5 . 5 5 . Destroy Leader 690 | . 36 10 114 30 . 40 90 30 . 10 . . 12 68 8 . 70 . . 20 . 20 20 10 30 . . 20 52 . Allied During Kill 803 | . . . . 21 . 10 . . . . . . . 328 128 85 231 . . . . . . . . . . . . . Successful Hack 156 | . 37 . 32 . . . 6 . . . . . . 26 . . 10 12 . . . . . . . . . 12 21 . Select Force Hacks 180 | . . . . . . . 60 . . . . . . . . . 120 . . . . . . . . . . . . . Disable Machine 450 | . . . . . . . 15 . . . . . 24 12 24 36 204 . . . . . 30 . . . . 15 90 . Anti-Garrison Action 120 | . . . . . . . . . . . . . 120 . . . . . . . . . . . . . . . . . Destroy Structure 421 | . . . 4 . . . 87 2 . . . . 8 59 4 13 118 8 . . . . 18 . . . . 48 52 . Advance Influence 900 | . . . . . . . . . . . . . . . . . . . . . . . 900 . . . . . . . Lose Combat Pursuer 231 | . . . 15 . . 15 . 90 . . . . . . . . 36 . . 45 . . 15 . . . . 15 . . Influence Decreases 7976 | 20 170 103 558 325 3 305 577 246 72 130 20 . 100 717 768 330 258 825 46 205 20 120 260 489 311 363 . 173 409 53 Entered New Map 1764 | . . 30 . 72 3 . . 39 27 . . . . 74 228 58 . 435 18 . . . . 289 69 358 . . 11 53 Time Decay 4890 | 20 170 63 538 233 . 245 517 167 45 130 20 . 90 443 380 252 168 80 18 195 20 120 160 190 222 5 . 168 231 . Search Patrol Dispatched 100 | . . . . . . . . . . . . . . . . . . . . . . . 100 . . . . . . . Lost Part 502 | . . 10 20 20 . 20 60 40 . . . . 10 40 40 . 10 10 10 10 . . . 10 20 . . 5 167 . Lost Ally 420 | . . . . . . 40 . . . . . . . 160 120 20 80 . . . . . . . . . . . . . Purge Threat 300 | . . . . . . . . . . . . . . . . . . 300 . . . . . . . . . . . . Squads Dispatched 29 | . 1 . 2 . . . 3 3 . . . . 2 3 1 . 6 3 . . . . . . . . . 2 3 . Investigation 13 | . . . 1 . . . 2 1 . . . . . 1 1 . 5 1 . . . . . . . . . . 1 . Extermination 3 | . . . . . . . . 1 . . . . . . . . . . . . . . . . . . . 1 1 . Reinforcement 11 | . 1 . 1 . . . 1 1 . . . . . 2 . . 1 2 . . . . . . . . . 1 1 . Assault 2 | . . . . . . . . . . . . . 2 . . . . . . . . . . . . . . . . . Garrison . | . . . . . . . . . . . . . . . . . . . . . . . . . . . . . . . Intercept . | . . . . . . . . . . . . . . . . . . . . . . . . . . . . . . . Searches Triggered 1 | . . . . . . . . . . . . . . . . . . . . . . . 1 . . . . . . . Construction Impeded 1 | . . . . . . . . . . . . . . 1 . . . . . . . . . . . . . . . . Haulers Reinforced . | . . . . . . . . . . . . . . . . . . . . . . . . . . . . . . . Active Scanning Responses . | . . . . . . . . . . . . . . . . . . . . . . . . . . . . . . . Cargo Convoy Interrupts . | . . . . . . . . . . . . . . . . . . . . . . . . . . . . . . . Stealth | -11 -10 -10 -9 -9 -9 -8 -8 -7 -7 -7 -7 -6 -6 -6 -6 -6 -6 -5 -5 -5 -5 -4 -4 -4 -4 -4 -3 -3 -3 -3 --------- Run | Yrd Mat Min Mat Min Exi Min Mat Fac Low Low Dat Pro Fac Ext Cet Arc Hub Fac Upp Upp War Pro Fac Upp Upp Zhi Pro Res Arm Lab Distress Signals 11 | . . . 2 . . . 2 . . . . . . . . . 2 1 . . 2 1 1 . . . . . . . Communications Jammed . | . . . . . . . . . . . . . . . . . . . . . . . . . . . . . . . Distress Signals . | . . . . . . . . . . . . . . . . . . . . . . . . . . . . . . . Times Spotted 342 | . 9 9 28 8 . 12 24 20 . 10 4 . 5 37 13 23 25 10 3 7 20 11 5 3 12 11 . 8 21 4 Peak Tracking Total 12 | . 3 10 6 4 . 4 6 10 . 4 3 . 3 7 5 2 11 8 2 4 12 3 2 3 5 6 . 3 5 1 Tactical Retreats 11 | . . 1 1 . . 1 . 1 . . . . . . . . 2 . . 3 . . 1 . . . . 1 . . Traps | -11 -10 -10 -9 -9 -9 -8 -8 -7 -7 -7 -7 -6 -6 -6 -6 -6 -6 -5 -5 -5 -5 -4 -4 -4 -4 -4 -3 -3 -3 -3 ------- Run | Yrd Mat Min Mat Min Exi Min Mat Fac Low Low Dat Pro Fac Ext Cet Arc Hub Fac Upp Upp War Pro Fac Upp Upp Zhi Pro Res Arm Lab Traps Triggered 11 | . 2 . . . . . 2 1 . . . . . 3 . . . 1 . . 1 . . . . . . . 1 . Indirectly . | . . . . . . . . . . . . . . . . . . . . . . . . . . . . . . . Trap Hack Attempts . | . . . . . . . . . . . . . . . . . . . . . . . . . . . . . . . Triggered . | . . . . . . . . . . . . . . . . . . . . . . . . . . . . . . . Disarmed 3 | . . . . . . . . . . . . . . 3 . . . . . . . . . . . . . . . . Reprogrammed . | . . . . . . . . . . . . . . . . . . . . . . . . . . . . . . . Reused . | . . . . . . . . . . . . . . . . . . . . . . . . . . . . . . . Traps Extracted . | . . . . . . . . . . . . . . . . . . . . . . . . . . . . . . . Installed . | . . . . . . . . . . . . . . . . . . . . . . . . . . . . . . . Triggered . | . . . . . . . . . . . . . . . . . . . . . . . . . . . . . . . Time Bombs Activated 1 | . . . . . . . . . . . . . . . . . . . . . . . . . . . . 1 . . Exploded 1 | . . . . . . . . . . . . . . . . . . . . . . . . . . . . 1 . . Machines | -11 -10 -10 -9 -9 -9 -8 -8 -7 -7 -7 -7 -6 -6 -6 -6 -6 -6 -5 -5 -5 -5 -4 -4 -4 -4 -4 -3 -3 -3 -3 ---------- Run | Yrd Mat Min Mat Min Exi Min Mat Fac Low Low Dat Pro Fac Ext Cet Arc Hub Fac Upp Upp War Pro Fac Upp Upp Zhi Pro Res Arm Lab Machines Disabled 45 | . . . . . . . 1 . . . . . 3 2 2 3 17 . 1 . 1 . 2 . . 2 . 1 6 4 Max in Single Turn 6 | . . . . . . . 1 . . . . . 1 1 1 1 6 . 1 . 1 . 1 . . 1 . 1 3 1 Garrison Access 2 | . . . . . . . 1 . . . . . 1 . . . . . . . . . . . . . . . . . Network Hub 4 | . . . . . . . . . . . . . . . . . 4 . . . . . . . . . . . . . Machines Repaired . | . . . . . . . . . . . . . . . . . . . . . . . . . . . . . . . Machines Dismantled . | . . . . . . . . . . . . . . . . . . . . . . . . . . . . . . . Machines Sabotaged 3 | . . . . . . . . . . . . . . . . . 3 . . . . . . . . . . . . . Overloaded Fab Kills . | . . . . . . . . . . . . . . . . . . . . . . . . . . . . . . . Hacking | -11 -10 -10 -9 -9 -9 -8 -8 -7 -7 -7 -7 -6 -6 -6 -6 -6 -6 -5 -5 -5 -5 -4 -4 -4 -4 -4 -3 -3 -3 -3 --------- Run | Yrd Mat Min Mat Min Exi Min Mat Fac Low Low Dat Pro Fac Ext Cet Arc Hub Fac Upp Upp War Pro Fac Upp Upp Zhi Pro Res Arm Lab Machines Accessed 69 | . 8 . 9 . 2 . 9 2 . . 3 . . 8 1 . 5 3 3 1 5 . . . . 4 1 2 1 2 Terminals 40 | . 7 . 7 . . . 5 1 . . . . . 7 1 . 5 3 . . . . . . . . 1 2 1 . Fabricators . | . . . . . . . . . . . . . . . . . . . . . . . . . . . . . . . Repair Stations . | . . . . . . . . . . . . . . . . . . . . . . . . . . . . . . . Recycling Units 5 | . 1 . 1 . . . 2 . . . . . . 1 . . . . . . . . . . . . . . . . Scanalyzers 3 | . . . 1 . . . 1 1 . . . . . . . . . . . . . . . . . . . . . . Garrison Access 1 | . . . . . . . 1 . . . . . . . . . . . . . . . . . . . . . . . Total Hacks 215 | . 21 . 23 . 2 . 19 6 . . 26 . . 22 3 . 12 14 3 1 7 . . . . 13 1 16 3 23 Successful 146 | . 10 . 12 . 2 . 13 4 . . 26 . . 10 . . 6 3 3 1 7 . . . . 13 1 11 1 23 Failed 67 | . 11 . 10 . . . 5 2 . . . . . 12 3 . 6 11 . . . . . . . . . 5 2 . Catastrophic 15 | . 2 . 2 . . . . 1 . . . . . 2 1 . 2 3 . . . . . . . . . 1 1 . Database Lockouts 2 | . . . 1 . . . 1 . . . . . . . . . . . . . . . . . . . . . . . Manual 86 | . 19 . 18 . 1 . 13 . . . . . . 5 1 . 7 14 . . . . . . . . . 7 1 . Terminals 121 | . 19 . 18 . . . 12 2 . . . . . 21 3 . 12 14 . . . . . . . . 1 16 3 . Fabricators . | . . . . . . . . . . . . . . . . . . . . . . . . . . . . . . . Repair Stations . | . . . . . . . . . . . . . . . . . . . . . . . . . . . . . . . Recycling Units 9 | . 2 . 2 . . . 4 . . . . . . 1 . . . . . . . . . . . . . . . . Scanalyzers 9 | . . . 3 . . . 2 4 . . . . . . . . . . . . . . . . . . . . . . Garrison Access 1 | . . . . . . . 1 . . . . . . . . . . . . . . . . . . . . . . . Terminal Hacks 108 | . 4 . 3 . 2 . 2 . . . 26 . . 7 . . 1 3 3 1 7 . . . . 13 1 11 1 23 Record 43 | . . . . . 1 . . . . . 6 . . . . . . . 1 . 5 . . . . 5 1 1 . 23 Part Schematic 15 | . . . . . . . . . . . 10 . . . . . . . . . . . . . . 4 . 1 . . Robot Schematic 7 | . . . . . . . . . . . 7 . . . . . . . . . . . . . . . . . . . Prototype ID Bank 8 | . . . . . . . . . . . 3 . . . . . . . . . . . . . . 4 . 1 . . Open Door 9 | . . . . . . . . . . . . . . 4 . . . . 2 1 2 . . . . . . . . . Level Access Points 1 | . . . . . . . . . . . . . . . . . 1 . . . . . . . . . . . . . Branch Access Points 3 | . 1 . . . . . . . . . . . . . . . . 1 . . . . . . . . . 1 . . Terminal Index 1 | . 1 . . . . . . . . . . . . . . . . . . . . . . . . . . . . . Fabricator Index 1 | . . . 1 . . . . . . . . . . . . . . . . . . . . . . . . . . . Unreport Threat 2 | . . . . . . . . . . . . . . . . . . 2 . . . . . . . . . . . . Locate Traps 1 | . . . . . . . . . . . . . . . . . . . . . . . . . . . . 1 . . Disarm Traps 1 | . . . . . . . . . . . . . . 1 . . . . . . . . . . . . . . . . Patrol Status 1 | . . . . . . . . . . . . . . . . . . . . . . . . . . . . 1 . . Recall Extermination 2 | . . . . . . . . . . . . . . . . . . . . . . . . . . . . 2 . . Recall Assault 1 | . . . . . . . . . . . . . . 1 . . . . . . . . . . . . . . . . Hauler Manifests 2 | . . . . . . . . . . . . . . 1 . . . . . . . . . . . . . 1 . . Registered Components 1 | . . . . . . . . . . . . . . . . . . . . . . . . . . . . 1 . . Registered Prototypes 2 | . . . . . . . . . . . . . . . . . . . . . . . . . . . . 1 1 . Zone Layout 6 | . 2 . 2 . . . 2 . . . . . . . . . . . . . . . . . . . . . . . Proto ID Catalog 1 | . . . . . 1 . . . . . . . . . . . . . . . . . . . . . . . . . Fabricator Hacks . | . . . . . . . . . . . . . . . . . . . . . . . . . . . . . . . Repair Station Hacks . | . . . . . . . . . . . . . . . . . . . . . . . . . . . . . . . Recycling Unit Hacks 4 | . . . 1 . . . 2 . . . . . . 1 . . . . . . . . . . . . . . . . Retrieve Components 4 | . . . 1 . . . 2 . . . . . . 1 . . . . . . . . . . . . . . . . Scanalyzer 7 | . . . 2 . . . 1 4 . . . . . . . . . . . . . . . . . . . . . . Retrieve Study 7 | . . . 2 . . . 1 4 . . . . . . . . . . . . . . . . . . . . . . Garrison Access Hacks 1 | . . . . . . . 1 . . . . . . . . . . . . . . . . . . . . . . . Seal Access 1 | . . . . . . . 1 . . . . . . . . . . . . . . . . . . . . . . . Unauthorized Hacks 26 | . 6 . 6 . . . 7 . . . . . . 2 . . 5 . . . . . . . . . . . . . Terminals 24 | . 6 . 6 . . . 5 . . . . . . 2 . . 5 . . . . . . . . . . . . . Skim 18 | . 6 . 5 . . . 5 . . . . . . 2 . . . . . . . . . . . . . . . . Sabotage 5 | . . . . . . . . . . . . . . . . . 5 . . . . . . . . . . . . . Search 1 | . . . 1 . . . . . . . . . . . . . . . . . . . . . . . . . . . Fabricators . | . . . . . . . . . . . . . . . . . . . . . . . . . . . . . . . Repair Stations . | . . . . . . . . . . . . . . . . . . . . . . . . . . . . . . . Recycling Units 2 | . . . . . . . 2 . . . . . . . . . . . . . . . . . . . . . . . Tunnel 2 | . . . . . . . 2 . . . . . . . . . . . . . . . . . . . . . . . Scanalyzers . | . . . . . . . . . . . . . . . . . . . . . . . . . . . . . . . Garrison Access . | . . . . . . . . . . . . . . . . . . . . . . . . . . . . . . . Data Cores Recovered 2 | . . . . . . . 1 . . . . . . . . . . . . . . . 1 . . . . . . . Used . | . . . . . . . . . . . . . . . . . . . . . . . . . . . . . . . Hacking Detections 33 | . 7 . 8 . . . 2 2 . . . . . 4 1 . 3 3 . . . . . . . . . 2 1 . Full Trace Events 3 | . . . . . . . . 1 . . . . . 1 1 . . . . . . . . . . . . . . . Feedback Events . | . . . . . . . . . . . . . . . . . . . . . . . . . . . . . . . Feedback Blocked . | . . . . . . . . . . . . . . . . . . . . . . . . . . . . . . . Robot Schematics Acquired 7 | . . . . . . . . . . . 7 . . . . . . . . . . . . . . . . . . . Robots Built . | . . . . . . . . . . . . . . . . . . . . . . . . . . . . . . . Authchips . | . . . . . . . . . . . . . . . . . . . . . . . . . . . . . . . Time . | . . . . . . . . . . . . . . . . . . . . . . . . . . . . . . . Total Robot Build Rating . | . . . . . . . . . . . . . . . . . . . . . . . . . . . . . . . Part Schematics Acquired 15 | . . . . . . . . . . . 10 . . . . . . . . . . . . . . 4 . 1 . . Parts Built . | . . . . . . . . . . . . . . . . . . . . . . . . . . . . . . . Authchips . | . . . . . . . . . . . . . . . . . . . . . . . . . . . . . . . Time . | . . . . . . . . . . . . . . . . . . . . . . . . . . . . . . . Total Part Build Rating . | . . . . . . . . . . . . . . . . . . . . . . . . . . . . . . . Part Studies Acquired 7 | . . . 2 . . . 1 4 . . . . . . . . . . . . . . . . . . . . . . Parts Repaired . | . . . . . . . . . . . . . . . . . . . . . . . . . . . . . . . Time . | . . . . . . . . . . . . . . . . . . . . . . . . . . . . . . . Parts Recycled . | . . . . . . . . . . . . . . . . . . . . . . . . . . . . . . . Recycled Matter . | . . . . . . . . . . . . . . . . . . . . . . . . . . . . . . . Retrieved Matter . | . . . . . . . . . . . . . . . . . . . . . . . . . . . . . . . Retrieved Components 26 | . . . 10 . . . 6 . . . . . . 10 . . . . . . . . . . . . . . . . Parts Scanalyzed . | . . . . . . . . . . . . . . . . . . . . . . . . . . . . . . . Part Schematics Acquired . | . . . . . . . . . . . . . . . . . . . . . . . . . . . . . . . Parts Damaged . | . . . . . . . . . . . . . . . . . . . . . . . . . . . . . . . Bothacking | -11 -10 -10 -9 -9 -9 -8 -8 -7 -7 -7 -7 -6 -6 -6 -6 -6 -6 -5 -5 -5 -5 -4 -4 -4 -4 -4 -3 -3 -3 -3 ------------ Run | Yrd Mat Min Mat Min Exi Min Mat Fac Low Low Dat Pro Fac Ext Cet Arc Hub Fac Upp Upp War Pro Fac Upp Upp Zhi Pro Res Arm Lab Used RIF Installer . | . . . . . . . . . . . . . . . . . . . . . . . . . . . . . . . Robots Hacked 8 | . . . . . 4 . . . . . . . . . . 2 . . . . . . 1 . . . . . . 1 Non-combat 4 | . . . . . 3 . . . . . . . . . . . . . . . . . 1 . . . . . . . Combat 4 | . . . . . 1 . . . . . . . . . . 2 . . . . . . . . . . . . . 1 Robot Hacks Applied 8 | . . . . . 4 . . . . . . . . . . 2 . . . . . . 1 . . . . . . 1 parse_system 7 | . . . . . 4 . . . . . . . . . . 2 . . . . . . . . . . . . . 1 no_distress 1 | . . . . . . . . . . . . . . . . . . . . . . . 1 . . . . . . . Manual 1 | . . . . . . . . . . . . . . . . . . . . . . . . . . . . . . 1 Relay Couplers Released 4 | . . . . . . . 2 . . . . . 2 . . . . . . . . . . . . . . . . . Machine Destruction 4 | . . . . . . . 2 . . . . . 2 . . . . . . . . . . . . . . . . . Fabnet Peak Effective % . | . . . . . . . . . . . . . . . . . . . . . . . . . . . . . . . Robots Rewired 11 | . . . . . . . . . . . . . . 11 . . . . . . . . . . . . . . . . Allies Hacked . | . . . . . . . . . . . . . . . . . . . . . . . . . . . . . . . Hacks Repelled . | . . . . . . . . . . . . . . . . . . . . . . . . . . . . . . . Allies | -11 -10 -10 -9 -9 -9 -8 -8 -7 -7 -7 -7 -6 -6 -6 -6 -6 -6 -5 -5 -5 -5 -4 -4 -4 -4 -4 -3 -3 -3 -3 -------- Run | Yrd Mat Min Mat Min Exi Min Mat Fac Low Low Dat Pro Fac Ext Cet Arc Hub Fac Upp Upp War Pro Fac Upp Upp Zhi Pro Res Arm Lab Total Allies 24 | . . . . 3 . . . . . . . . . 16 5 . . . . . . . . . . . . . . . Largest Group 10 | . . . . 3 2 2 . . . . . . . 10 8 6 4 . . . . . . . . . . . . . Highest-Rated Group 682 | . . . . 40 32 32 . . . . . . . 404 682 539 377 . . . . . . . . . . . . . Highest-Rated Ally 159 | . . . . 16 16 16 . . . . . . . 159 143 137 96 . . . . . . . . . . . . . Total Orders 2 | . . . . . . . . . . . . . . . . 2 . . . . . . . . . . . . . . STAY 1 | . . . . . . . . . . . . . . . . 1 . . . . . . . . . . . . . . FOLLOW 1 | . . . . . . . . . . . . . . . . 1 . . . . . . . . . . . . . . Ally Attacks 306 | . . . . 11 . 8 . . . . . . . 123 55 21 88 . . . . . . . . . . . . . Total Damage 7745 | . . . . 122 . 107 . . . . . . . 2350 1589 642 2935 . . . . . . . . . . . . . Kills 51 | . . . . 3 . 2 . . . . . . . 21 8 3 14 . . . . . . . . . . . . . Allies Corrupted 2 | . . . . . . . . . . . . . . . . . 2 . . . . . . . . . . . . . Allies Melted 2 | . . . . . . . . . . . . . . . . . . . . . 2 . . . . . . . . . Intel | -11 -10 -10 -9 -9 -9 -8 -8 -7 -7 -7 -7 -6 -6 -6 -6 -6 -6 -5 -5 -5 -5 -4 -4 -4 -4 -4 -3 -3 -3 -3 ------- Run | Yrd Mat Min Mat Min Exi Min Mat Fac Low Low Dat Pro Fac Ext Cet Arc Hub Fac Upp Upp War Pro Fac Upp Upp Zhi Pro Res Arm Lab Active Infowar (turns) 15680 | 7 702 626 600 . . . 1393 422 193 473 . . . 1189 889 715 408 176 769 994 1489 788 335 398 469 638 493 591 568 355 Optics 11295 | . . . . . . . 31 . . . . . . 1189 889 715 408 176 769 994 1489 788 335 398 469 638 493 591 568 355 Sensors 667 | . . . 1 . . . . . 193 473 . . . . . . . . . . . . . . . . . . . . Seismic 1934 | 7 702 626 599 . . . . . . . . . . . . . . . . . . . . . . . . . . . Machine Analysis 1784 | . . . . . . . 1362 422 . . . . . . . . . . . . . . . . . . . . . . Jamming 545 | . . . . . . . . . . . . . . . . . . . . . . . . . . . 37 508 . . Robot Analysis Total 154 | . . . . . . . . . . . 154 . . . . . . . . . . . . . . . . . . . Derelict Logs Recovered 13 | . . 1 . 2 . . . . 1 2 . 1 . . . . . . 1 1 . 2 . . 2 . . . . . Drone Launches . | . . . . . . . . . . . . . . . . . . . . . . . . . . . . . . . Drone Recoveries . | . . . . . . . . . . . . . . . . . . . . . . . . . . . . . . . Exploration | -11 -10 -10 -9 -9 -9 -8 -8 -7 -7 -7 -7 -6 -6 -6 -6 -6 -6 -5 -5 -5 -5 -4 -4 -4 -4 -4 -3 -3 -3 -3 ------------- Run | Yrd Mat Min Mat Min Exi Min Mat Fac Low Low Dat Pro Fac Ext Cet Arc Hub Fac Upp Upp War Pro Fac Upp Upp Zhi Pro Res Arm Lab Turns Passed 21560 | 127 702 626 1822 998 775 1258 1448 442 200 525 335 241 250 1371 889 715 408 176 769 994 1489 809 335 398 469 638 493 591 568 699 Spaces Moved 10734 | 55 291 363 734 471 378 564 544 363 222 503 136 215 149 691 436 327 175 99 447 473 858 417 167 228 217 239 305 233 149 285 Core 122 | 9 . . . . . . . . . . . . . . . . . . . . . . . . . . . . . 113 Treads 7497 | 46 291 363 734 471 378 564 208 . . . . . . . 135 327 175 99 447 473 858 417 167 228 217 239 305 233 122 . Legs 2478 | . . . . . . . . 68 222 503 136 215 149 691 301 . . . . . . . . . . . . . 21 172 Wheels 631 | . . . . . . . 336 295 . . . . . . . . . . . . . . . . . . . . . . Hover 6 | . . . . . . . . . . . . . . . . . . . . . . . . . . . . . 6 . Flight . | . . . . . . . . . . . . . . . . . . . . . . . . . . . . . . . Fastest Speed 45 | 50 160 160 160 200 200 200 85 45 45 90 45 112 120 120 120 160 160 160 160 165 163 165 165 165 165 165 152 157 150 50 Average Speed 156 | 142 160 160 170 200 200 200 131 81 89 90 93 112 120 120 149 160 160 160 162 202 164 165 165 165 165 201 154 160 239 172 Slowest Speed 350 | 160 160 160 240 200 200 200 200 145 90 170 120 120 120 120 240 160 160 160 165 246 165 165 165 165 246 240 240 225 305 350 Overloaded Moves 61 | . . . . . . . . 48 1 . 12 . . . . . . . . . . . . . . . . . . . Propulsion Burnouts . | . . . . . . . . . . . . . . . . . . . . . . . . . . . . . . . Robots Hopped . | . . . . . . . . . . . . . . . . . . . . . . . . . . . . . . . Potential Cave-ins 4 | . . . . . . . . . . . . . . . . . . . . . . . . . . . . 4 . . Cave-ins Triggered . | . . . . . . . . . . . . . . . . . . . . . . . . . . . . . . . Teleports 2 | . . . . . . . . . . . . . . . . . . . . . . . . . . . . . 2 . Exploration Rate (%) 54 | 4 66 77 69 88 69 92 36 12 33 56 80 53 6 84 83 85 34 6 58 76 93 72 7 51 56 62 51 14 13 99 Regions Visited 30 Branch Regions 22 Pre-discovered Areas 36 | . 1 . 3 2 1 . 3 . . . 23 . . . . . . . . . . . . . . 3 . . . . Known Exits Taken 12 | . 1 . 1 . . 1 1 1 1 . . 1 . . . . 1 1 . . . 1 1 . . . . 1 . . Unknown Exits Taken 18 | 1 . 1 . 1 1 . . . . 1 1 . 1 1 1 1 . . 1 1 1 . . 1 1 1 1 . 1 . Scrap Searched 19 | . . 1 . 1 . 1 . . 1 3 . 1 . . . . . . 2 . . 1 . 2 2 . 4 . . . Spaces Dug 45 | . . . . . . . . 2 . . . . . 6 . . 1 1 . . . 11 1 . . . . 17 6 . Terrain Destroyed 565 | . . . . . . . 87 2 . . . . 6 56 . 14 157 5 2 10 1 27 10 8 17 101 5 24 33 . Melee 3 | . . . . . . . . 2 . . . . . . . . . . . . . . . . . . . . 1 . Projectile 188 | . . . . . . . . . . . . . 6 36 . 14 13 5 2 10 1 27 10 8 16 1 5 24 10 . AOE 373 | . . . . . . . 87 . . . . . . 20 . . 144 . . . . . . . . 100 . . 22 . Terrain Rammed 17 | . . . . . . . . . . . . . . . . . . . . . . . . . . . . . . 17 Walls Destroyed . | . . . . . . . . . . . . . . . . . . . . . . . . . . . . . . . Machines Disabled 2 | . . . . . . . . . . . . . . . . . . . . . . . . . . . . . . 2 Actions | -11 -10 -10 -9 -9 -9 -8 -8 -7 -7 -7 -7 -6 -6 -6 -6 -6 -6 -5 -5 -5 -5 -4 -4 -4 -4 -4 -3 -3 -3 -3 --------- Run | Yrd Mat Min Mat Min Exi Min Mat Fac Low Low Dat Pro Fac Ext Cet Arc Hub Fac Upp Upp War Pro Fac Upp Upp Zhi Pro Res Arm Lab Total 14112 | 85 478 384 1175 500 396 633 1165 448 222 562 284 216 182 1074 648 459 235 108 488 486 934 479 198 236 259 355 322 397 267 437 Wait 1677 | . 131 3 324 12 3 34 491 12 . 29 65 . 6 123 105 47 15 . 20 . 19 23 5 1 . 36 . 112 1 60 Move 10705 | 54 290 362 733 470 377 563 543 362 221 502 135 214 148 690 435 326 175 98 446 472 857 416 166 227 216 238 304 232 148 285 Hop . | . . . . . . . . . . . . . . . . . . . . . . . . . . . . . . . Pick Up 284 | 12 19 2 21 . 5 1 23 13 . 11 11 . 5 17 30 19 2 2 11 1 18 2 2 1 2 18 4 2 21 9 Fast Attach 39 | . . . 3 . . . 4 3 . . . . . 1 1 5 2 . . . 2 1 2 . . 5 4 2 . 4 Attach 170 | 7 1 1 7 2 2 2 12 8 1 4 20 . 6 6 10 3 1 1 4 1 3 . 3 . 1 16 . 8 21 19 Detach 36 | . . . 2 . 1 . 1 1 . . 7 2 . 2 2 . . . . . . . . . . 3 . 1 6 8 Swap 70 | . 4 2 3 1 2 . 6 4 . . 2 . . 7 4 2 5 1 . . 13 2 . 1 4 2 . 4 1 . Drop 202 | 1 7 2 13 1 2 1 15 12 . 7 1 . 1 7 31 21 2 . 5 . 20 3 4 . 3 7 7 4 1 24 Fire 697 | 11 26 12 69 14 . 31 70 31 . 9 . . 16 67 30 34 33 6 2 12 2 32 15 6 33 30 3 31 67 5 Melee 58 | . . . . . 4 . . 2 . . 43 . . . . 2 . . . . . . 1 . . . . . 1 5 Ram 18 | . . . . . . . . . . . . . . . . . . . . . . . . . . . . . . 18 Kick 1 | . . . . . . . . . . . . . . 1 . . . . . . . . . . . . . . . . Crush 1 | . . . . . . 1 . . . . . . . . . . . . . . . . . . . . . . . . Escape Stasis 15 | . . . . . . . . . . . . . . 15 . . . . . . . . . . . . . . . . Rewire 138 | . . . . . . . . . . . . . . 138 . . . . . . . . . . . . . . . . Trap 1 | . . . . . . . . . . . . . . . . . . . . . . . . . . . . 1 . . Miscellaneous . | . . . . . . . . . . . . . . . . . . . . . . . . . . . . . . . Route ------- -11/Scrapyard -10/Materials (discovered 4 exits: *Mat x2 / *Min x2) -10/Mines -9/Materials (discovered 5 exits: Mat x3 / *Min x2) -9/Mines (discovered 3 exits: *Mat x2 / *Exi) -9/Exiles -8/Mines (discovered 2 exits: *Mat x2) -8/Materials (discovered 4 exits: *Fac x3 / *Sto) -7/Factory (discovered 2 exits: *Fac / *Low) -7/Lower Caves -7/Lower Caves -7/Data Miner -6/Proximity Caves -6/Factory (discovered 2 exits: Fac / *Ext) -6/Extension (discovered 2 exits: *Fac / *Cet) -6/Cetus (discovered 2 exits: *Fac / [*Arc]) -6/Archives (discovered 3 exits: *Fac / *Hub x2) -6/Hub_04(d) (discovered 4 exits: *Fac x4) -5/Factory (discovered 2 exits: *Upp x2) -5/Upper Caves -5/Upper Caves -5/Warlord -4/Proximity Caves -4/Factory -4/Upper Caves -4/Upper Caves (discovered 2 exits: *Res / *Zhi) -4/Zhirov -3/Proximity Caves -3/Research (discovered 4 exits: Res / *Arm / *Qua x2) -3/Armory -3/Lab (discovered 1 exit: *Res) History --------- Turn | Location | Event 22 | -11/Scrapyard | Discovered new exit (range 15) 128 | -11/Scrapyard | Entered Materials 315 | -10/Materials | Build established: Mutant 394 | -10/Materials | Discovered new exit (range 16) 510 | -10/Materials | Identified exit to Mines 575 | -10/Materials | Loaded intel: 31 trap records 596 | -10/Materials | Discovered new exit (range 19) 643 | -10/Materials | Learned location of Mines (-9) 664 | -10/Materials | Learned location of 1 exit from Recycling 677 | -10/Materials | Learned Materials trap positions 700 | -10/Materials | Learned 2 Storage zone layouts 735 | -10/Materials | Learned Storage emergency access door positions 830 | -10/Materials | Entered Mines 864 | -10/Mines | Learned location of 1 exit from Materials 935 | -10/Mines | Destroyed YI-UF0 1118 | -10/Mines | Assembled infested the area 1123 | -10/Mines | Assisted by a Guerilla fighting off Assembled 1162 | -10/Mines | Found a damaged Exp. Sensor Array with a note attached 1165 | -10/Mines | Found Prototype Device 1424 | -10/Mines | Discovered new exit (range 15) 1456 | -10/Mines | Entered Materials 1456 | -9/Materials | Evolved 2 slots: Utility x2 1457 | -9/Materials | Identified exit to Mines 1458 | -9/Materials | Loaded intel: 18 trap records 1669 | -9/Materials | Destroyed 7 combat bots 2635 | -9/Materials | Identified Exp. Sensor Array 2766 | -9/Materials | Central database locked down 2812 | -9/Materials | Discovered new exit (range 10) 2812 | -9/Materials | Discovered exit to Mines (range 15) 2884 | -9/Materials | Learned location of 3 exits from Materials 2947 | -9/Materials | Learned location of 1 exit from Recycling 3002 | -9/Materials | Learned location of Zion (-6) 3047 | -9/Materials | Identified exit to Materials 3107 | -9/Materials | Learned location of Storage (-8) 3122 | -9/Materials | Learned Storage trap positions 3217 | -9/Materials | Learned Recycling recycling unit intel 3278 | -9/Materials | Entered Mines 3290 | -9/Mines | System corruption reached 10% 3322 | -9/Mines | Met a Derelict bent on vengeance 3427 | -9/Mines | Assisted by bots powering up and referring to "LRC-V3" 4258 | -9/Mines | Deemed a non-threat by the Exiles lab entrance 4260 | -9/Mines | Discovered new exit (range 5) 4276 | -9/Mines | Entered Exiles 4276 | -9/Exiles | Accompanied by 2 allies 4327 | -9/Exiles | Met 8R-AWN 4364 | -9/Exiles | Met EX-HEX 4457 | -9/Exiles | Met EX-DEC 4670 | -9/Exiles | Met EX-BIN 4783 | -9/Exiles | Aligned with FarCom system 4785 | -9/Exiles | Given EX-Vault access code 4833 | -9/Exiles | Opened EX-Vault 4847 | -9/Exiles | Found 0b10 Alert Chip 4850 | -9/Exiles | Found Superbattery 4858 | -9/Exiles | Found Potential Leg 4860 | -9/Exiles | Found Potential Leg 4901 | -9/Exiles | Warned to stay clear of 0b10 Research branches 5029 | -9/Exiles | Discovered new exit (range 10) 5051 | -9/Exiles | Stole three prototypes: Potential Leg, Superbattery, 0b10 Alert Chip 5051 | -9/Exiles | Entered Mines 5051 | -8/Mines | Accompanied by 2 allies 6309 | -8/Mines | Entered Materials 6309 | -8/Materials | Evolved 2 slots: Propulsion x2 6310 | -8/Materials | Identified exit to Storage 6311 | -8/Materials | Identified exit to Factory 6567 | -8/Materials | Lost 6 parts (3n1u2w) 6987 | -8/Materials | Central database locked down 7301 | -8/Materials | Learned 8 Factory zone layouts 7415 | -8/Materials | Learned Storage stockpile data 7457 | -8/Materials | Learned Factory recycling unit intel 7484 | -8/Materials | Build established: Scavenger-Mutant 7491 | -8/Materials | Learned location of 1 exit from Lower Caves 7545 | -8/Materials | Learned location of 1 exit from Recycling 7757 | -8/Materials | Entered Factory 7757 | -7/Factory | Evolved 2 slots: Propulsion x1, Utility x1 7758 | -7/Factory | Identified exit to Lower Caves 7759 | -7/Factory | FarCom data flow suspended 7760 | -7/Factory | Loaded intel: 6 recycling unit locations 8166 | -7/Factory | Discovered new exit (range 8) 8199 | -7/Factory | Entered Lower Caves 8200 | -7/Lower Caves | Identified exit to Lower Caves 8213 | -7/Lower Caves | Lost 9 parts (1p4n1u3w) 8381 | -7/Lower Caves | Encountered a Warlord checkpoint 8399 | -7/Lower Caves | Entered another Lower Caves area 8417 | -7/Lower Caves | Build established: Mutant 8493 | -7/Lower Caves | Entered a destroyed Warlord outpost 8498 | -7/Lower Caves | Learned 4 Factory zone layouts 8741 | -7/Lower Caves | Attracted the attention of an 0b10 checkpoint 8785 | -7/Lower Caves | Learned location of 1 exit from Proximity Caves 8870 | -7/Lower Caves | Encountered a Master Thief 8870 | -7/Lower Caves | Encountered a Master Thief 8870 | -7/Lower Caves | Encountered a Master Thief 8871 | -7/Lower Caves | Encountered a Master Thief 8872 | -7/Lower Caves | Exp. Sensor Array stolen by Master Thief 8872 | -7/Lower Caves | Gatling Laser stolen by Master Thief 8879 | -7/Lower Caves | Gauss Rifle stolen by Master Thief 8882 | -7/Lower Caves | Imp. Melee Analysis Suite stolen by Master Thief 8908 | -7/Lower Caves | Discovered new exit (range 15) 8924 | -7/Lower Caves | Entered Data Miner 8924 | -7/Data Miner | Discovered new exit (range 6) 8942 | -7/Data Miner | Met Data Miner 8957 | -7/Data Miner | Learned location of Section 7 (-2) 8957 | -7/Data Miner | Acquired the access code to Warlord's prototype stash 8970 | -7/Data Miner | Received God Mode back door access code from Data Miner 8986 | -7/Data Miner | Destroyed Data Miner 8990 | -7/Data Miner | Interfaced with the Data Conduit 9094 | -7/Data Miner | Core integrity fell below 50% 9118 | -7/Data Miner | Core integrity fell below 20% 9130 | -7/Data Miner | Lost 4 parts (3u1w) 9205 | -7/Data Miner | Found Exp. Thermal Shield 9259 | -7/Data Miner | Entered Proximity Caves 9260 | -6/Proximity Caves | Identified exit to Factory 9379 | -6/Proximity Caves | Learned Factory trap positions 9484 | -6/Proximity Caves | Build established: Scavenger-Mutant 9500 | -6/Proximity Caves | Entered Factory 9500 | -6/Factory | Evolved 2 slots: Utility x2 9501 | -6/Factory | Identified exit to Factory 9502 | -6/Factory | Loaded intel: 86 trap records 9503 | -6/Factory | Loaded intel: 298 machine locations 9732 | -6/Factory | Discovered new exit (range 15) 9750 | -6/Factory | Entered Extension 9751 | -6/Extension | Loaded intel: 27 machine locations 10041 | -6/Extension | Rescued a captive Derelict 10047 | -6/Extension | Rescued a captive Derelict 10132 | -6/Extension | Lost 3 allies 10339 | -6/Extension | Rescued A7 10528 | -6/Extension | Spotted B-75 Beast 10545 | -6/Extension | Spotted B-75 Beast 10557 | -6/Extension | Allies destroyed B-75 Beast 10590 | -6/Extension | Allies destroyed B-75 Beast 10670 | -6/Extension | Rescued a captive Derelict 10700 | -6/Extension | Disrupted transfer network 10979 | -6/Extension | Rescued a captive Derelict 11074 | -6/Extension | Discovered exit to Factory (range 10) 11075 | -6/Extension | Discovered new exit (range 6) 11121 | -6/Extension | Entered Cetus 11121 | -6/Cetus | Accompanied by 7 allies (A7) 11122 | -6/Cetus | Loaded intel: 24 machine locations 11126 | -6/Cetus | Acquired a Cetus Manufacturing Module code from A7 11135 | -6/Cetus | Spotted Cetus Guard 11135 | -6/Cetus | Spotted Cetus Guard 11135 | -6/Cetus | Spotted Cetus Guard 11135 | -6/Cetus | Spotted Cetus Guard 11153 | -6/Cetus | Destroyed Cetus Guard 11156 | -6/Cetus | Destroyed Cetus Guard 11157 | -6/Cetus | Allies destroyed Cetus Guard 11164 | -6/Cetus | Allies destroyed Cetus Guard 11187 | -6/Cetus | Lost 3 allies 11277 | -6/Cetus | Started Cetus Manufacturing Module 11296 | -6/Cetus | Discovered new exit (range 22) 11302 | -6/Cetus | Manufactured an Enhanced Grunt 11327 | -6/Cetus | Manufactured an Enhanced Grunt 11352 | -6/Cetus | Manufactured an Enhanced Grunt 11377 | -6/Cetus | Manufactured an Enhanced Grunt 11402 | -6/Cetus | Manufactured an Enhanced Grunt 11453 | -6/Cetus | Cetus Manufacturing Module disabled 11489 | -6/Cetus | Escorted A7 to Cetus Mainframe 11528 | -6/Cetus | Spotted Cetus Guard 11528 | -6/Cetus | Spotted Cetus Guard 11528 | -6/Cetus | Spotted Cetus Guard 11528 | -6/Cetus | Spotted Cetus Guard 11537 | -6/Cetus | Allies destroyed Cetus Guard 11537 | -6/Cetus | Discovered exit to Factory (range 21) 11543 | -6/Cetus | Core integrity fell below 50% 11552 | -6/Cetus | Allies destroyed Cetus Guard 11552 | -6/Cetus | Found Exp. Thermal Shield 11556 | -6/Cetus | Destroyed Cetus Guard 11560 | -6/Cetus | Allies destroyed Cetus Guard 11572 | -6/Cetus | Met Revision 17 11632 | -6/Cetus | Build established: Commander-Mutant 11731 | -6/Cetus | System corruption reached 10% 11871 | -6/Cetus | Security sweep announced 11941 | -6/Cetus | System corruption reached 30% 12010 | -6/Cetus | Entered Archives 12010 | -6/Archives | Accompanied by 6 allies (A7) 12011 | -6/Archives | Loaded intel: 8 machine locations 12015 | -6/Archives | Received a hacking code to weaken MAIN.C 12020 | -6/Archives | Build established: Scavenger-Mutant 12042 | -6/Archives | Discovered new exit (range 22) 12064 | -6/Archives | Discovered new exit (range 21) 12160 | -6/Archives | Discovered exit to Factory (range 22) 12725 | -6/Archives | Entered Hub_04(d) 12725 | -6/Hub_04(d) | Accompanied by 4 allies 12726 | -6/Hub_04(d) | Loaded intel: 132 machine locations 12811 | -6/Hub_04(d) | Network Hub disabled 12856 | -6/Hub_04(d) | Network Hub disabled 12861 | -6/Hub_04(d) | Spotted Lightning 12867 | -6/Hub_04(d) | Spotted Lightning 12868 | -6/Hub_04(d) | Spotted Lightning 12897 | -6/Hub_04(d) | Allies destroyed Lightning 12903 | -6/Hub_04(d) | Allies destroyed Lightning 12916 | -6/Hub_04(d) | Destroyed Lightning 12968 | -6/Hub_04(d) | Found Exp. Phase Shifter 13004 | -6/Hub_04(d) | Network Hub disabled 13112 | -6/Hub_04(d) | Network Hub disabled 13133 | -6/Hub_04(d) | Entered Factory 13133 | -5/Factory | Evolved 2 slots: Power x1, Propulsion x1 13134 | -5/Factory | Loaded intel: 300 machine locations 13169 | -5/Factory | Identified exit to Upper Caves 13309 | -5/Factory | Entered Upper Caves 13311 | -5/Upper Caves | Encountered a Master Thief 13315 | -5/Upper Caves | Quantum Reactor stolen by Master Thief 13316 | -5/Upper Caves | Encountered a Master Thief 13318 | -5/Upper Caves | Hcp. Storage Unit stolen by Master Thief 13417 | -5/Upper Caves | Learned Factory terminal intel 13437 | -5/Upper Caves | Entered an active Warlord outpost 14042 | -5/Upper Caves | Discovered new exit (range 5) 14066 | -5/Upper Caves | Found Alien Artifact 14078 | -5/Upper Caves | Entered another Upper Caves area 14136 | -5/Upper Caves | Encountered a Warlord checkpoint 14809 | -5/Upper Caves | Discovered new exit (range 7) 14871 | -5/Upper Caves | Learned 8 Factory zone layouts 15072 | -5/Upper Caves | Entered Warlord 15163 | -5/Warlord | System corruption cleaned by Quarantine Array 15200 | -5/Warlord | System corruption cleaned by Quarantine Array 15225 | -5/Warlord | System corruption cleaned by Quarantine Array 15262 | -5/Warlord | System corruption cleaned by Quarantine Array 15694 | -5/Warlord | Learned Testing stockpile data 15697 | -5/Warlord | Learned Factory terminal intel 15697 | -5/Warlord | Learned Armory recycling unit intel 15697 | -5/Warlord | Learned Factory repair station intel 15794 | -5/Warlord | Found Vortex Chain Reactor 15802 | -5/Warlord | Found System Purifier 15818 | -5/Warlord | Found Exp. Phase Shifter 15830 | -5/Warlord | Found Prototype Hackware 15849 | -5/Warlord | Found Exp. Armor Integrity Analyzer 15974 | -5/Warlord | Warlord's base attacked by MAIN.C 16021 | -5/Warlord | Found Prototype Energy Cannon 16021 | -5/Warlord | Identified Vortex Cannon 16035 | -5/Warlord | Found Vortex Cannon 16153 | -5/Warlord | Found Prototype Special Weapon 16155 | -5/Warlord | Found Prototype Special Weapon 16159 | -5/Warlord | Found Prototype Special Weapon 16162 | -5/Warlord | Found Prototype Special Weapon 16168 | -5/Warlord | Found Prototype Special Weapon 16172 | -5/Warlord | Found Prototype Special Weapon 16210 | -5/Warlord | Met Warlord 16296 | -5/Warlord | Identified RU-N14's Throwing Claymores v3 (x6) 16324 | -5/Warlord | Warlord forces counterattacked 16367 | -5/Warlord | Spotted Executioner 16412 | -5/Warlord | Spotted Striker 16474 | -5/Warlord | Lost 17 allies 16517 | -5/Warlord | Opened side exit 16550 | -5/Warlord | Discovered new exit (range 9) 16561 | -5/Warlord | Entered Proximity Caves 16570 | -4/Proximity Caves | Identified exit to Factory 16635 | -4/Proximity Caves | Spotter reported a threat 16637 | -4/Proximity Caves | Spotter reported a threat 16690 | -4/Proximity Caves | Spotter reported a threat 16740 | -4/Proximity Caves | Spotter reported a threat 16790 | -4/Proximity Caves | Spotted B-86 Titan 16804 | -4/Proximity Caves | Spotter reported a threat 16999 | -4/Proximity Caves | Destroyed B-86 Titan 17168 | -4/Proximity Caves | Spotter reported a threat 17176 | -4/Proximity Caves | Spotter reported a threat 17310 | -4/Proximity Caves | Learned 12 Research zone layouts 17370 | -4/Proximity Caves | Entered Factory 17370 | -4/Factory | Evolved 2 slots: Weapon x2 17372 | -4/Factory | Loaded intel: 271 machine locations 17373 | -4/Factory | Loaded intel: 26 terminal locations 17374 | -4/Factory | Loaded intel: 6 repair station locations 17620 | -4/Factory | Search patrols dispatched 17628 | -4/Factory | Discovered new exit (range 16) 17701 | -4/Factory | Identified exit to Upper Caves 17705 | -4/Factory | Entered Upper Caves 17860 | -4/Upper Caves | Attracted the attention of an 0b10 checkpoint 17929 | -4/Upper Caves | Build established: Scavenger-Tank 18077 | -4/Upper Caves | Discovered new exit (range 14) 18103 | -4/Upper Caves | Entered another Upper Caves area 18131 | -4/Upper Caves | Attracted the attention of an 0b10 checkpoint 18175 | -4/Upper Caves | Discovered new exit (range 12) 18378 | -4/Upper Caves | Learned Research garrison access intel 18491 | -4/Upper Caves | Build established: Scavenger-Mutant 18528 | -4/Upper Caves | Discovered new exit (range 21) 18557 | -4/Upper Caves | Learned location of 1 exit from Research 18572 | -4/Upper Caves | Entered Zhirov 18572 | -4/Zhirov | Discovered new exit (range 3) 18602 | -4/Zhirov | Met Zhirov 18648 | -4/Zhirov | Zhirov requested help retrieving the SGEMP Prototype 18673 | -4/Zhirov | Found Alien Artifact 18675 | -4/Zhirov | Identified Integrated Dissipator 18675 | -4/Zhirov | Installed Integrated Dissipator, increased core heat dissipation (+20) 18695 | -4/Zhirov | Found Alien Artifact 18827 | -4/Zhirov | Attacked by Zhirov 18827 | -4/Zhirov | Destroyed Zhirov 18831 | -4/Zhirov | Destroyed Svarog 18838 | -4/Zhirov | Cloak Generator disabled 18838 | -4/Zhirov | Destroyed Perun 18848 | -4/Zhirov | Enhanced Grunts warped into view 18915 | -4/Zhirov | Found Zhirov Special 18919 | -4/Zhirov | Destroyed 9 combat bots 18919 | -4/Zhirov | Found Alien Artifact 18922 | -4/Zhirov | Lost 6 parts (3n3u) 18925 | -4/Zhirov | Found Prototype Hackware 18928 | -4/Zhirov | Found Prototype Hackware 18979 | -4/Zhirov | Found Adv. Powered Armor 19210 | -4/Zhirov | Entered Proximity Caves 19375 | -3/Proximity Caves | Build established: Scavenger-Tank 19611 | -3/Proximity Caves | Discovered new exit (range 8) 19703 | -3/Proximity Caves | Entered Research 19703 | -3/Research | Evolved 2 slots: Utility x2 19704 | -3/Research | Identified exit to Quarantine 19706 | -3/Research | Identified exit to Research 19707 | -3/Research | Loaded intel: 104 machine locations 19708 | -3/Research | Loaded intel: 3 garrison access locations 19780 | -3/Research | Identified System Mapper 19781 | -3/Research | Identified Deep Network Scanner 19783 | -3/Research | Identified Quantum Router 19786 | -3/Research | Identified exit to Armory 20110 | -3/Research | Build established: Wizard-Tank 20255 | -3/Research | Spotted B-86 Titan 20294 | -3/Research | Entered Armory 20295 | -3/Armory | Loaded intel: 89 machine locations 20296 | -3/Armory | Loaded intel: 2 recycling unit locations 20301 | -3/Armory | Lost 10 parts (2p2n4u2w) 20598 | -3/Armory | Build established: Hacker-Mutant 20602 | -3/Armory | Lost 5 parts (1p2n2w) 20617 | -3/Armory | Identified Transdimensional Reconstructor (x2) 20617 | -3/Armory | Warped through subspace to slip node 20617 | -3/Armory | Discovered new exit (range 1) 20618 | -3/Armory | Core integrity fell below 50% 20797 | -3/Armory | Lost 8 parts (2n2u4w) 20860 | -3/Armory | Core integrity fell below 20% 20861 | -3/Armory | Warped through subspace to slip node 20862 | -3/Armory | Entered Lab 20862 | -3/Lab | Discovered exit to Research (range 9) 20892 | -3/Lab | Hidden lab's door opened automatically 20892 | -3/Lab | Sensor layout match revealed 20893 | -3/Lab | Gained access to the hidden lab's interior 20992 | -3/Lab | Found Alien Artifact 20993 | -3/Lab | Identified Integrated Reactor 20993 | -3/Lab | Installed Integrated Reactor, increased core energy generation (+10) 21006 | -3/Lab | Found Alien Artifact 21007 | -3/Lab | Identified Core Regenerator 21007 | -3/Lab | Used Core Regenerator, restored core integrity (+325) 21025 | -3/Lab | Found Transdimensional Reconstructor 21057 | -3/Lab | Detected by scanners 21090 | -3/Lab | Confronted by A5 21094 | -3/Lab | Hacked A5 with code downloaded from Data Conduit 21097 | -3/Lab | Destroyed A5 21111 | -3/Lab | Found Prototype Protection 21111 | -3/Lab | Identified Exp. Powered Armor 21119 | -3/Lab | Found Quantum Router 21128 | -3/Lab | Found Prototype Energy Gun 21141 | -3/Lab | Found Prototype Energy Cannon 21141 | -3/Lab | Identified Warp Cannon 21142 | -3/Lab | Identified Tachyon Dispersion Ray 21198 | -3/Lab | Decrypted terminal 21229 | -3/Lab | Decrypted terminal 21229 | -3/Lab | Acquired modification code for an L2 power cell 21265 | -3/Lab | System corruption reached 10% 21552 | -3/Lab | Decrypted terminal 21556 | -3/Lab | Build established: Mutant 21556 | -3/Lab | Disabled Active System Cloaker 21561 | -3/Lab | Destroyed by G-67 Veteran with Plasma Rifle Last Messages --------------- 21337_ Discarded Broken Enh. Optical Array. 21337_ Dropped Broken Adv. Remote Datajack. 21338_ Dropped Broken Imp. Datajack. 21340_ System corrupted: Component data lost. 21365_ System corrupted: Matter fused (-8). 21440_ System corrupted: Component data lost. 21475_ System corrupted: Energy discharge (-38). 21498_ OYWBR=O3XFSA QX>%SBXHDWE1U9OOM2K 21524_ Dropped Lrg. Storage Unit. 21534_ Dropped Tachyon Dispersion Ray. 21535_ Dropped Superbattery. 21535_ Dropped Vortex Chain Reactor. 21536_ Acquired Cld. Antimatter Reactor. 21538_ VT#|N9ZJLD%V&GWZ3XA#I5>>M4CA 21538_ Acquired Cld. Antigrav System. 21540_ Acquired Enh. Force Lance. 21552_ Connecting with Active System Cloaker... 21552_ Slammed into Active System Cloaker. 21556_ Active System Cloaker disabled. 21561_ Slammed into G-73 Enforcer. Map ----- +----------------------------------------------------+ | | | | | | | | | | | | | ??????????????????????????????????????? | | ??????????????????????????????????????? | | ?????###########??????????????????????? | | ?????# """"""" #??????????????????????? | | ##???#"""""""""#??????????????????????? | | "#####" !"#####??????????????????? | | "" """"" """"" #??????????????????? | | "#??????????????????? | | ""#??????????????????? | | ""#??????????????????? | | ""#??????????????????? | | " !"#??????????????????? | | ## ""#??????????????????? | | ?#" ""#??????????????????? | | ?#" ""#??????????????????? | | ?#" "#######????????????? | | ## """""#????????????? | | "" #######?????#####??? | | " #####g####### #??? | | [ g @g #??? | | #A########### #??? | | "###?????????#####??? | | """" "#??????????????????? | | *=#####" "#??????????????????? | | |"!#???#" "#??????????????????? | | *]|#???#" "#??????????????????? | | ="#???#" "#??????????????????? | | /"#####" "#??????????????????? | | """"""" ""??????????????????? | | ""#?????????????????? | | ""#?????????????????? | | ""#?????????????????? | | "" """""##?????????????????? | | " """"""""""""""""#??????????????????? | | """"################??????????????????? | | """"#?????????????????????????????????? | | #####?????????????????????????????????? | | ??????????????????????????????????????? | | #?????????????????????????????????????? | | #?????????????????????????????????????? | | #?????????????????????????????????????? | | #?????????????????????????????????????? | | #?????????????????????????????????????? | | #?????????????????????????????????????? | +----------------------------------------------------+ Best States ------------- Heat Dissipation 104 Energy Generation 51 Energy Capacity 1895 Matter Stores 300 Matter Capacity 300 Sight Range 22 Robot Scan Range 20 Terrain Scan Density 10 Jamming Range 14 Armor Coverage 1800 Resistance: KI 25 Resistance: TH 30 Power Shielding 90 Melee Speed Boost 40 Phase Shifting 20 Evasion (%) 70 Core Analysis 9 Armor Integrity Analysis 50 Recoil Reduction 6 Energy Filtering 30 Particle Charging 30 Offensive Hacking 59 Defensive Hacking 25 Item Schematics ----------------- Combat Drone Bay | -7/Data Miner | Free Cld. Cesium-ion Thruster | -7/Data Miner | Free Exp. Targeting Computer | -7/Data Miner | Free Lgt. Regenerative Plating | -7/Data Miner | Free Scatter Rocket Array | -7/Data Miner | Free Field Propulsion Drive | -7/Data Miner | Free Mni. Drone Bay | -7/Data Miner | Free Imp. Arc Projector | -7/Data Miner | Free Impulse Thruster | -7/Data Miner | Free Imp. Point Defense System | -7/Data Miner | Free Assault Drone Bay | -4/Zhirov | Free Exp. Heat Sink | -4/Zhirov | Free Exp. Optical Array | -4/Zhirov | Free Imp. Arc Thrower | -4/Zhirov | Free Enh. Quantum Rifle | -3/Research | Hacked Robot Schematics ------------------ M-28 Smith | -7/Data Miner | Free I-36 Angel | -7/Data Miner | Free P-60 Hacker | -7/Data Miner | Free O-24 Administrator | -7/Data Miner | Free L-41 Fighter | -7/Data Miner | Free A-15 Conveyor | -7/Data Miner | Free B-60 Warrior | -7/Data Miner | Free Fabricated ------------ Nothing Repaired ---------- Nothing Studied --------- Lgt. Treads | -9/Materials | Hacked Imp. Treads | -9/Materials | Hacked Wheel | -8/Materials | Hacked Greatsword | -7/Factory | Hacked Gauss Rifle | -7/Factory | Hacked Deuterium Engine | -7/Factory | Hacked Imp. Deuterium Engine | -7/Factory | Hacked Alien Tech Used ----------------- Integrated Dissipator Transdimensional Reconstructor Integrated Reactor Core Regenerator Achievements -------------- 404 Challenges ------------ None Game ------ Seed FlightBraceRecalibrator Manual? 0 Play Time 02:25:51 Cumulative 471.5 hours Start 2025.11.05 @ 01:39:14 End 2025.11.05 @ 07:47:23 Sessions 4 Manual Loads 0 Difficulty Rogue Special Mode None Game No. 592 Rogue 592 Adventurer 0 Explorer 0 Win Type - Total 14 Types 6/0/2/2/1/0/2/1/0/0 Lore% 90 Gallery% 85 Achievement% 63 Wizard Run 0 Options --------- Layout 0 ASCII 0 Keyboard 0 Movement Mouse Keybinds 0 Fullscreen 1 Font 24/Terminus Map View 76x50 Zoom Use 0% Tactical HUD 1 Map Filters NONE Filters NONE Steam 1 RUN: b9c9736d-9b62-49d8-ad95-919b19999359